bitfinex-derivatives/quotes_BTCF0:USTF0_20241130
["timestamp","ask_amount","ask_price","bid_price","bid_amount"]
[1733008065412,0.08126948,96615.0,96614.0,0.05495781]
[1733008065602,0.08126948,96615.0,96614.0,0.05495778]
[1733008066004,0.08126948,96615.0,96614.0,0.05695778]
[1733008066512,0.051722,96616.0,96614.0,0.05895778]
[1733008066710,0.051722,96616.0,96615.0,0.00323478]
[1733008067600,0.13323565,96616.0,96615.0,0.00323478]
[1733008068314,0.08151365,96616.0,96615.0,0.00323478]
[1733008068513,0.08151365,96616.0,96615.0,0.05695778]
[1733008068706,0.051721,96618.0,96615.0,0.05695778]
[1733008068707,0.08151365,96617.0,96615.0,0.05695778]
[1733008068908,0.08151365,96616.0,96615.0,0.054723]
[1733008069113,0.08151365,96617.0,96615.0,0.05795777]
[1733008069312,0.08151365,96616.0,96615.0,0.054723]
[1733008069506,0.0818508,96616.0,96615.0,0.054723]
[1733008069707,0.0818508,96616.0,96615.0,0.05795777]
[1733008070615,0.051721,96618.0,96615.0,0.05795777]
[1733008070817,0.08190099,96617.0,96616.0,0.00323477]
[1733008071612,0.05172,96621.0,96619.0,0.05172]
[1733008071812,0.32957922,96620.0,96619.0,0.18084]
[1733008072014,0.32957922,96620.0,96619.0,0.18407477]
[1733008072515,0.0822277,96620.0,96619.0,0.18407477]
[1733008072816,0.0822277,96620.0,96619.0,0.13235477]
[1733008073017,0.1339477,96620.0,96619.0,0.13235477]
[1733008073418,0.1339477,96620.0,96619.0,0.00323477]
[1733008075118,0.22919555,96620.0,96619.0,0.00323477]
[1733008075621,0.1339477,96620.0,96619.0,0.00323477]
[1733008075822,0.05172,96620.0,96619.0,0.00323477]
[1733008076025,0.2291956,96620.0,96618.0,0.051721]
[1733008076324,0.05172,96620.0,96619.0,0.00323477]
[1733008076520,0.13409516,96620.0,96619.0,0.00323477]
[1733008077317,0.13409516,96620.0,96618.0,0.051721]
[1733008077520,0.08237516,96619.0,96618.0,0.051721]
[1733008077713,0.24736256,96619.0,96618.0,0.181321]
[1733008077918,0.24736256,96619.0,96618.0,0.18455577]
[1733008078224,0.08237516,96619.0,96618.0,0.18555577]
[1733008078620,0.32973772,96619.0,96618.0,0.18555577]
[1733008078819,0.08237516,96619.0,96618.0,0.18555577]
[1733008079418,0.32973772,96619.0,96618.0,0.182321]
[1733008079615,0.08237516,96619.0,96618.0,0.18555561]
[1733008079818,0.412519,96623.0,96618.0,0.13383461]
[1733008079819,0.08237516,96622.0,96618.0,0.13383461]
[1733008080023,0.08237516,96621.0,96619.0,0.05495569]
[1733008080321,0.08237516,96620.0,96619.0,0.051721]
[1733008080520,0.08237516,96620.0,96619.0,0.05495568]
[1733008081318,0.08237516,96620.0,96619.0,0.051721]
[1733008082719,0.27814978,96621.0,96619.0,0.051721]
[1733008082916,0.4557704,96621.0,96619.0,0.051721]
[1733008083111,0.17762062,96620.0,96619.0,0.051721]
[1733008083626,0.4557704,96620.0,96619.0,0.051721]
[1733008084028,0.4557704,96620.0,96619.0,0.181321]
[1733008084425,0.17762062,96620.0,96619.0,0.181321]
[1733008084815,0.17762062,96620.0,96619.0,0.182321]
[1733008084816,0.45619701,96620.0,96619.0,0.182321]
[1733008085131,0.50791701,96620.0,96619.0,0.001]
[1733008085529,0.22934062,96620.0,96619.0,0.001]
[1733008088419,0.22934062,96620.0,96619.0,0.00423486]
[1733008089926,0.42557938,96620.0,96619.0,0.00423486]
[1733008090132,0.45623454,96620.0,96619.0,0.05595586]
[1733008091820,0.17762062,96620.0,96619.0,0.05595586]
[1733008092021,0.22934062,96620.0,96619.0,0.00423486]
[1733008092725,0.50795454,96620.0,96619.0,0.00423486]
[1733008093127,0.22934062,96620.0,96619.0,0.00423486]
[1733008093322,0.50795454,96620.0,96619.0,0.00423486]
[1733008093731,0.22934062,96620.0,96619.0,0.00423486]
[1733008095627,0.22934062,96620.0,96619.0,0.0042347]
[1733008095827,0.53839594,96620.0,96619.0,0.0042347]
[1733008096031,0.22934062,96620.0,96619.0,0.00423479]
[1733008096534,0.17762062,96620.0,96619.0,0.00423479]
[1733008097324,0.0823905,96622.0,96619.0,0.00423479]
[1733008097547,0.22935653,96621.0,96620.0,0.00323479]
[1733008098533,0.17763653,96621.0,96620.0,0.00323479]
[1733008098831,0.17763653,96621.0,96620.0,0.05495479]
[1733008100326,0.17763653,96622.0,96620.0,0.05495479]
[1733008100531,0.17763653,96621.0,96620.0,0.05172]
[1733008100734,0.3608,96623.0,96620.0,0.0549547]
[1733008100735,0.17763653,96622.0,96620.0,0.0549547]
[1733008100941,0.17763653,96621.0,96620.0,0.05172]
[1733008101142,0.09524603,96621.0,96620.0,0.0549547]
[1733008101438,0.17763653,96622.0,96620.0,0.0549547]
[1733008101640,0.17763653,96621.0,96620.0,0.05172]
[1733008101843,0.17763653,96622.0,96620.0,0.0549547]
[1733008102032,0.17763653,96622.0,96621.0,0.0032347]
[1733008102434,0.1777096,96622.0,96621.0,0.0032347]
[1733008102642,0.1777096,96622.0,96621.0,0.0549547]
[1733008103741,0.30905532,96625.0,96624.0,0.051718]
[1733008103947,0.48679913,96625.0,96624.0,0.051718]
[1733008104339,0.17774381,96625.0,96624.0,0.051718]
[1733008108945,0.48732011,96625.0,96624.0,0.051718]
[1733008109156,0.17774381,96625.0,96624.0,0.051718]
[1733008109647,0.17774381,96625.0,96624.0,0.05495255]
[1733008110948,0.17774381,96625.0,96624.0,0.051718]
[1733008111539,0.17774381,96625.0,96624.0,0.05495246]
[1733008112248,0.08249788,96625.0,96624.0,0.05495246]
[1733008112452,0.08249788,96625.0,96624.0,0.051718]
[1733008112648,0.27854665,96627.0,96623.0,0.3608]
[1733008112850,0.051712,96635.0,96624.0,0.051718]
[1733008112851,0.08275507,96626.0,96624.0,0.051718]
[1733008113050,0.08275507,96625.0,96624.0,0.051718]
[1733008113250,0.08275507,96625.0,96624.0,0.05495239]
[1733008113455,0.08275507,96625.0,96624.0,0.051718]
[1733008113750,0.08275507,96625.0,96624.0,0.05495237]
[1733008116950,0.33023147,96625.0,96624.0,0.05495237]
[1733008117251,0.08275507,96625.0,96624.0,0.05495237]
[1733008117449,0.2474764,96626.0,96624.0,0.05495237]
[1733008117650,0.08275507,96625.0,96624.0,0.051718]
[1733008117855,0.2474764,96627.0,96624.0,0.00323438]
[1733008118154,0.2474764,96627.0,96622.0,0.13]
[1733008118155,0.2474764,96627.0,96626.0,0.051717]
[1733008118352,0.2474764,96627.0,96626.0,0.05495138]
[1733008118658,0.08285433,96627.0,96626.0,0.05495138]
[1733008118951,0.24746742,96627.0,96626.0,0.06012634]
[1733008119150,0.33069694,96627.0,96626.0,0.06012634]
[1733008119352,0.08322952,96627.0,96626.0,0.06012634]
[1733008119662,0.08322952,96627.0,96626.0,0.06853548]
[1733008119855,0.08322952,96631.0,96626.0,0.06853548]
[1733008120045,0.08322952,96630.0,96629.0,0.051715]
[1733008120352,0.17846295,96631.0,96629.0,0.18494938]
[1733008120550,0.08322952,96630.0,96629.0,0.181715]
[1733008120854,0.27854665,96633.0,96631.0,0.051714]
[1733008121053,0.17848946,96632.0,96631.0,0.051714]
[1733008121260,0.17848946,96632.0,96631.0,0.05494828]
[1733008122352,0.18048946,96632.0,96631.0,0.05494828]
[1733008123060,0.18083708,96632.0,96631.0,0.05494828]
[1733008123653,0.08560369,96632.0,96631.0,0.05494828]
[1733008124859,0.2493733,96632.0,96631.0,0.05494828]
[1733008125262,0.2473733,96632.0,96631.0,0.05494827]
[1733008125460,0.2483733,96632.0,96631.0,0.05494827]
[1733008125656,0.33197699,96632.0,96631.0,0.05494827]
[1733008126169,0.08460369,96632.0,96631.0,0.06701891]
[1733008127053,0.08360369,96632.0,96631.0,0.06701891]
[1733008127361,0.08460369,96632.0,96631.0,0.06701891]
[1733008128561,0.08460369,96632.0,96631.0,0.06378464]
[1733008128762,0.08460369,96632.0,96631.0,0.07219375]
[1733008131766,0.001,96632.0,96631.0,0.07219375]
[1733008132569,0.001,96632.0,96631.0,0.07219374]
[1733008136471,0.08635717,96632.0,96631.0,0.07219374]
[1733008137585,0.3337263,96632.0,96631.0,0.07219374]
[1733008138471,0.08635717,96632.0,96631.0,0.07219374]
[1733008138679,0.001,96632.0,96631.0,0.07219374]
[1733008138867,0.08635717,96632.0,96631.0,0.07219374]
[1733008139177,0.33401396,96632.0,96631.0,0.07219374]
[1733008140382,0.33301396,96632.0,96631.0,0.07419374]
[1733008140668,0.24765679,96632.0,96631.0,0.07419374]
[1733008141171,0.33301396,96632.0,96631.0,0.07419374]
[1733008141468,0.33301396,96632.0,96631.0,0.06901891]
[1733008141672,0.33349422,96632.0,96631.0,0.07619374]
[1733008142273,0.08583743,96632.0,96631.0,0.07619374]
[1733008142671,0.08583743,96632.0,96631.0,0.08266227]
[1733008143062,0.08583743,96632.0,96631.0,0.07619374]
[1733008143264,0.08583743,96636.0,96635.0,0.051712]
[1733008143469,0.3095763,96636.0,96635.0,0.0601211]
[1733008143667,0.18491788,96636.0,96635.0,0.0601211]
[1733008144974,0.18491788,96636.0,96635.0,0.06012095]
[1733008145174,0.18491788,96636.0,96635.0,0.06019699]
[1733008145175,0.03363241,96636.0,96635.0,0.06019699]
[1733008145367,0.27871779,96642.0,96635.0,0.01365941]
[1733008145567,0.0614,96666.0,96636.0,0.01811133]
[1733008145568,0.24777213,96637.0,96636.0,0.01811133]
[1733008145782,0.24777213,96639.0,96637.0,0.051711]
[1733008145973,0.27876341,96643.0,96639.0,0.05171]
[1733008146273,0.27876341,96643.0,96642.0,0.051708]
[1733008146478,0.3608,96649.0,96642.0,0.051708]
[1733008146479,0.27876341,96644.0,96642.0,0.06011695]
[1733008146679,0.27876341,96644.0,96643.0,0.00840895]
[1733008147276,0.27876341,96645.0,96643.0,0.00840895]
[1733008147582,0.27876341,96645.0,96644.0,0.06011595]
[1733008148482,0.27832138,96648.0,96644.0,0.00840895]
[1733008148671,0.27832138,96648.0,96646.0,0.051706]
[1733008148873,0.27832138,96648.0,96647.0,0.00323385]
[1733008149072,0.0307,96648.0,96647.0,0.00323385]
[1733008149582,0.0307,96648.0,96647.0,0.00840794]
[1733008150384,0.0307,96648.0,96647.0,0.00323385]
[1733008150584,0.0307,96648.0,96647.0,0.00840794]
[1733008150883,0.0327,96648.0,96647.0,0.00840789]
[1733008151083,0.084405,96648.0,96647.0,0.00840789]
[1733008151281,0.084405,96648.0,96647.0,0.0032338]
[1733008151873,0.18088555,96648.0,96647.0,0.0032338]
[1733008152078,0.18088555,96648.0,96635.0,7.604e-05]
[1733008152079,0.051712,96636.0,96635.0,7.604e-05]
[1733008152373,0.50899255,96636.0,96635.0,7.604e-05]
[1733008153275,0.59398035,96636.0,96635.0,0.00107604]
[1733008156481,0.59304187,96636.0,96635.0,0.00107604]
[1733008157078,0.67316987,96636.0,96610.0,0.3608]
[1733008157283,0.051721,96618.0,96617.0,0.051722]
[1733008157480,0.3608,96623.0,96610.0,0.3608]
[1733008157481,0.051724,96613.0,96610.0,0.412525]
[1733008157682,0.051725,96611.0,96610.0,0.3608]
[1733008158184,0.051725,96611.0,96610.0,7.337e-05]
[1733008158382,0.29900288,96611.0,96610.0,7.337e-05]
[1733008158883,0.38226849,96611.0,96610.0,7.337e-05]
[1733008159083,0.13499061,96611.0,96610.0,7.337e-05]
[1733008159686,0.38226849,96611.0,96610.0,7.337e-05]
[1733008159890,0.13499061,96611.0,96610.0,0.00907337]
[1733008160088,0.051732,96598.0,96586.0,0.051738]
[1733008160293,0.051733,96597.0,96590.0,0.00841205]
[1733008160477,0.06750005,96600.0,96586.0,0.051738]
[1733008160781,0.06750005,96600.0,96582.0,0.13184]
[1733008160782,0.051736,96591.0,96579.0,0.0314]
[1733008160987,0.051738,96587.0,96580.0,0.00841303]
[1733008161187,0.05181542,96587.0,96586.0,8.475e-05]
[1733008163889,0.05181542,96587.0,96586.0,0.00908475]
[1733008163890,0.05281542,96587.0,96586.0,0.00908475]
[1733008164095,0.00107742,96587.0,96586.0,0.00908475]
[1733008164680,0.00107742,96587.0,96586.0,0.01408475]
[1733008164885,7.742e-05,96587.0,96586.0,0.00908475]
[1733008165996,7.742e-05,96587.0,96586.0,0.01008475]
[1733008166379,7.742e-05,96587.0,96586.0,0.14676475]
[1733008168189,7.742e-05,96587.0,96586.0,0.14576475]
[1733008169489,7.742e-05,96587.0,96586.0,0.14676475]
[1733008169791,7.742e-05,96587.0,96586.0,0.17956475]
[1733008170582,0.00107742,96587.0,96586.0,0.18356475]
[1733008171298,0.00107742,96587.0,96586.0,0.18156475]
[1733008171501,0.00107742,96587.0,96586.0,0.19404604]
[1733008171998,0.00107742,96587.0,96586.0,0.19304604]
[1733008172888,7.742e-05,96587.0,96586.0,0.19204604]
[1733008173290,7.742e-05,96587.0,96586.0,0.18604604]
[1733008173594,7.742e-05,96587.0,96586.0,0.19204604]
[1733008173994,7.742e-05,96587.0,96586.0,0.19304604]
[1733008174593,7.742e-05,96587.0,96586.0,0.19404604]
[1733008176900,7.742e-05,96587.0,96586.0,0.05736604]
[1733008177608,7.742e-05,96587.0,96586.0,0.08816604]
[1733008179090,7.742e-05,96587.0,96586.0,0.07616604]
[1733008179290,7.742e-05,96587.0,96586.0,0.08816604]
[1733008180795,7.742e-05,96587.0,96586.0,0.08316604]
[1733008180998,7.742e-05,96587.0,96586.0,0.08816604]
[1733008181994,7.742e-05,96587.0,96586.0,0.09140175]
[1733008182204,7.742e-05,96587.0,96586.0,0.09981431]
[1733008182401,7.742e-05,96587.0,96586.0,0.10499113]
[1733008182598,7.742e-05,96587.0,96586.0,0.09981431]
[1733008184305,7.742e-05,96587.0,96586.0,0.09999121]
[1733008184506,7.742e-05,96587.0,96586.0,0.10499121]
[1733008184799,7.742e-05,96587.0,96586.0,0.10499118]
[1733008185010,7.742e-05,96587.0,96586.0,0.09981431]
[1733008186400,7.742e-05,96587.0,96586.0,0.10499122]
[1733008186804,7.742e-05,96587.0,96586.0,0.24171122]
[1733008187111,7.742e-05,96587.0,96586.0,0.23653424]
[1733008187306,7.742e-05,96587.0,96586.0,0.24171122]
[1733008189708,7.742e-05,96587.0,96586.0,0.24171121]
[1733008190509,7.742e-05,96587.0,96586.0,0.24171109]
[1733008192500,7.742e-05,96587.0,96586.0,0.26112485]
[1733008193003,7.742e-05,96587.0,96586.0,0.26112461]
[1733008193199,7.742e-05,96587.0,96586.0,0.11146228]
[1733008193510,7.742e-05,96587.0,96586.0,0.26256456]
[1733008193700,7.742e-05,96587.0,96586.0,0.24962228]
[1733008194997,7.742e-05,96587.0,96586.0,0.24315109]
[1733008196706,7.742e-05,96587.0,96586.0,0.24315111]
[1733008200000,7.742e-05,96587.0,96586.0,0.20717421]
[1733008200199,7.742e-05,96587.0,96586.0,0.20717429]
[1733008200402,7.742e-05,96587.0,96586.0,0.20017429]
[1733008200600,7.742e-05,96587.0,96586.0,0.20717429]
[1733008200810,7.742e-05,96587.0,96586.0,0.19876168]
[1733008201316,7.742e-05,96587.0,96586.0,0.2071744]
[1733008202607,7.742e-05,96587.0,96586.0,0.20717435]
[1733008206022,7.742e-05,96587.0,96586.0,0.20717424]
[1733008206414,7.742e-05,96587.0,96586.0,0.20393871]
[1733008206613,7.742e-05,96587.0,96586.0,0.20717424]
[1733008207012,0.27839219,96607.0,96586.0,0.64723095]
[1733008207214,0.08035263,96606.0,96605.0,0.051728]
[1733008207411,0.08035263,96606.0,96605.0,0.189888]
[1733008209824,0.08235263,96606.0,96605.0,0.189888]
[1733008212421,0.08235263,96606.0,96605.0,0.20193311]
[1733008213717,0.002,96606.0,96605.0,0.20193311]
[1733008214122,0.08289915,96606.0,96605.0,0.20193311]
[1733008214325,0.002,96606.0,96605.0,0.20193311]
[1733008214624,0.002,96606.0,96605.0,0.21034413]
[1733008215013,0.002,96606.0,96605.0,0.20193311]
[1733008215823,0.002,96606.0,96605.0,0.21034401]
[1733008216728,0.051206,96610.0,96605.0,0.15861601]
[1733008217031,0.08113251,96609.0,96607.0,0.051727]
[1733008217223,0.051206,96610.0,96607.0,0.051727]
[1733008217224,0.08113251,96608.0,96607.0,0.051727]
[1733008217418,0.051206,96610.0,96608.0,0.051726]
[1733008217625,0.08236634,96609.0,96608.0,0.051726]
[1733008218215,0.00155317,96613.0,96612.0,0.051724]
[1733008219223,0.08391212,96613.0,96612.0,0.051724]
[1733008220728,0.08591212,96613.0,96612.0,0.051724]
[1733008222026,0.08435895,96613.0,96612.0,0.051724]
[1733008224630,0.051724,96612.0,96611.0,0.13728]
[1733008225026,0.051724,96612.0,96605.0,0.01204511]
[1733008225027,0.3608,96612.0,96605.0,0.01204511]
[1733008225223,0.3608,96612.0,96583.0,0.3608]
[1733008225224,0.24736578,96607.0,96599.0,0.13728]
[1733008225424,0.0309,96606.0,96597.0,0.13728]
[1733008225624,0.08229708,96605.0,96597.0,0.13728]
[1733008225821,0.08229708,96604.0,96597.0,0.13728]
[1733008226031,0.08229677,96603.0,96597.0,0.13728]
[1733008226226,0.051732,96598.0,96597.0,0.13728]
[1733008226429,0.051734,96595.0,96590.0,0.051736]
[1733008226634,0.051731,96599.0,96597.0,0.002]
[1733008226835,0.082132,96598.0,96597.0,0.002]
[1733008227620,0.082132,96598.0,96597.0,0.004]
[1733008228021,0.27839219,96598.0,96586.0,0.00064475]
[1733008228221,0.65961826,96587.0,96586.0,8.475e-05]
[1733008228422,0.49467,96587.0,96586.0,8.475e-05]
[1733008229430,0.412538,96587.0,96586.0,0.01208475]
[1733008229741,0.49385939,96587.0,96586.0,0.01208475]
[1733008230435,0.74075822,96587.0,96586.0,0.01208475]
[1733008230730,0.49385939,96587.0,96586.0,0.01208475]
[1733008234532,0.49238459,96587.0,96586.0,0.01208475]
[1733008235129,0.051743,96577.0,96571.0,0.11479641]
[1733008236035,0.051743,96577.0,96571.0,0.03065804]
[1733008236435,0.051743,96577.0,96572.0,0.00011933]
[1733008236941,0.052743,96577.0,96572.0,0.00011933]
[1733008237242,0.052743,96577.0,96572.0,0.02083134]
[1733008237535,0.051743,96577.0,96572.0,0.02083134]
[1733008237739,0.052743,96577.0,96572.0,0.02883134]
[1733008239436,0.051745,96573.0,96572.0,0.00811933]
[1733008239634,0.051745,96573.0,96572.0,0.01711933]
[1733008240738,0.053745,96573.0,96572.0,0.01711933]
[1733008242938,0.053745,96573.0,96572.0,0.01271907]
[1733008243831,0.053745,96573.0,96572.0,0.017]
[1733008244339,0.052745,96573.0,96572.0,0.008]
[1733008244543,0.053745,96573.0,96572.0,0.016]
[1733008253253,0.13395571,96573.0,96572.0,0.016]
[1733008254647,0.30067034,96573.0,96572.0,0.016]
[1733008254853,0.38109295,96573.0,96572.0,0.016]
[1733008255355,0.13416761,96573.0,96572.0,0.016]
[1733008256047,0.38124117,96573.0,96572.0,0.016]
[1733008256247,0.13416761,96573.0,96572.0,0.016]
[1733008257240,0.053745,96573.0,96572.0,0.016]
[1733008257844,0.053745,96573.0,96572.0,0.067746]
[1733008258043,0.053745,96573.0,96572.0,0.016]
[1733008261146,0.053745,96573.0,96572.0,0.01923617]
[1733008261352,0.002,96573.0,96572.0,0.01923617]
[1733008261943,0.06750005,96590.0,96572.0,0.01923617]
[1733008261944,0.24729308,96576.0,96572.0,0.016]
[1733008262149,0.27839219,96590.0,96576.0,0.051743]
[1733008262445,0.27839219,96590.0,96583.0,0.05174]
[1733008262446,0.051738,96588.0,96583.0,0.05174]
[1733008262748,0.051738,96588.0,96584.0,0.1374]
[1733008263145,0.051738,96588.0,96585.0,0.1374]
[1733008263648,0.051738,96587.0,96585.0,0.1374]
[1733008264752,0.051738,96587.0,96584.0,0.003]
[1733008264753,0.051739,96585.0,96584.0,0.1404]
[1733008265544,0.051739,96585.0,96584.0,0.1374]
[1733008266455,0.051739,96585.0,96584.0,0.1414]
[1733008267257,0.052739,96585.0,96584.0,0.1484]
[1733008270051,0.13264129,96585.0,96584.0,0.1484]
[1733008271654,0.052739,96585.0,96584.0,0.1484]
[1733008272056,0.001,96585.0,96584.0,0.200139]
[1733008272251,0.27839219,96596.0,96595.0,0.051734]
[1733008272449,0.27839219,96596.0,96595.0,0.189134]
[1733008272450,0.07935307,96596.0,96595.0,0.189134]
[1733008272647,0.36111505,96604.0,96595.0,0.1374]
[1733008272851,0.05173,96602.0,96598.0,0.051732]
[1733008273158,0.07911656,96601.0,96598.0,0.051732]
[1733008273348,0.07911656,96600.0,96598.0,0.051732]
[1733008273548,0.07911656,96599.0,96598.0,0.051732]
[1733008273759,0.00155325,96605.0,96600.0,0.051731]
[1733008273958,0.07776559,96604.0,96600.0,0.051731]
[1733008274153,0.00155325,96605.0,96600.0,0.051731]
[1733008274154,0.05173,96602.0,96600.0,0.051731]
[1733008274348,0.07776559,96601.0,96600.0,0.051731]
[1733008275262,0.05173,96602.0,96600.0,0.051731]
[1733008279258,0.05173,96602.0,96601.0,0.1374]
[1733008279968,0.051733,96596.0,96595.0,0.0306]
[1733008280152,0.051733,96596.0,96595.0,0.168]
[1733008281867,0.051733,96596.0,96595.0,0.17]
[1733008282071,0.051733,96596.0,96595.0,0.0326]
[1733008282251,0.051733,96596.0,96595.0,0.0346]
[1733008283258,0.051733,96596.0,96595.0,0.004]
[1733008284359,0.12983525,96596.0,96595.0,0.004]
[1733008285659,0.22511131,96596.0,96595.0,0.004]
[1733008285860,0.33012519,96596.0,96595.0,0.004]
[1733008286076,0.5035035,96596.0,96595.0,0.004]
[1733008286259,0.22511131,96596.0,96595.0,0.004]
[1733008286864,0.32969741,96596.0,96595.0,0.004]
[1733008287057,0.22511131,96596.0,96595.0,0.004]
[1733008288163,0.22511131,96596.0,96595.0,0.003]
[1733008291071,0.58591131,96596.0,96595.0,0.003]
[1733008292072,0.412533,96596.0,96595.0,0.003]
[1733008292265,0.58557685,96596.0,96595.0,0.003]
[1733008293669,0.22477685,96596.0,96595.0,0.003]
[1733008293981,0.58557685,96596.0,96595.0,0.003]
[1733008295260,0.22477685,96596.0,96595.0,0.003]
[1733008295464,0.58557685,96596.0,96595.0,0.003]
[1733008297281,0.22548031,96596.0,96595.0,0.003]
[1733008297470,0.58628031,96596.0,96595.0,0.003]
[1733008299077,0.58636891,96596.0,96595.0,0.003]
[1733008301073,0.49109095,96596.0,96595.0,0.003]
[1733008301779,0.58636925,96596.0,96595.0,0.003]
[1733008301981,0.58647013,96596.0,96595.0,0.003]
[1733008302169,0.22567013,96596.0,96595.0,0.003]
[1733008302368,0.58647013,96596.0,96595.0,0.003]
[1733008307681,0.58735479,96596.0,96595.0,0.003]
[1733008309274,0.86568639,96596.0,96595.0,0.003]
[1733008310173,0.58735479,96596.0,96595.0,0.003]
[1733008310668,0.86575125,96596.0,96595.0,0.003]
[1733008311076,0.58735479,96596.0,96595.0,0.003]
[1733008318184,0.5890616,96596.0,96595.0,0.003]
[1733008320283,0.051738,96587.0,96586.0,0.01209463]
[1733008320478,0.051741,96582.0,96576.0,0.13432]
[1733008320681,0.051741,96582.0,96575.0,0.02070928]
[1733008320872,0.051741,96582.0,96575.0,0.15502928]
[1733008321073,0.13298995,96582.0,96575.0,0.15502928]
[1733008321578,0.13398995,96582.0,96581.0,0.0404]
[1733008322188,0.13398995,96582.0,96581.0,0.0454]
[1733008323483,0.13398995,96582.0,96581.0,0.0578382]
[1733008327690,0.49478995,96582.0,96581.0,0.0578382]
[1733008329984,0.49478995,96582.0,96581.0,0.06107425]
[1733008330781,0.74236551,96582.0,96581.0,0.0578382]
[1733008330981,0.49478995,96582.0,96581.0,0.0578382]
[1733008332786,0.49478995,96582.0,96581.0,0.06107426]
[1733008333894,0.08224895,96582.0,96581.0,0.06107426]
[1733008334087,0.08224895,96582.0,96581.0,0.06625167]
[1733008334288,0.08224895,96582.0,96581.0,0.10218751]
[1733008334488,0.001,96582.0,96581.0,0.10736485]
[1733008335395,0.08466836,96582.0,96581.0,0.10736485]
[1733008336080,0.051732,96598.0,96581.0,0.10736485]
[1733008336081,0.2476025,96592.0,96581.0,0.12677891]
[1733008336285,0.67030312,96603.0,96592.0,0.051735]
[1733008336286,0.2476025,96594.0,96592.0,0.051735]
[1733008336486,0.2476025,96599.0,96593.0,0.15114582]
[1733008336685,0.2476025,96599.0,96598.0,0.051732]
[1733008336888,0.2476025,96600.0,96598.0,0.051732]
[1733008337190,0.05173,96602.0,96599.0,0.00323534]
[1733008337386,0.24747785,96600.0,96598.0,0.051732]
[1733008337592,0.24747785,96601.0,96599.0,0.00323534]
[1733008337795,0.24747785,96601.0,96598.0,0.06396283]
[1733008339387,0.24747785,96601.0,96598.0,0.06496283]
[1733008339995,0.24747785,96601.0,96599.0,0.13432]
[1733008340686,0.29920885,96601.0,96599.0,0.13432]
[1733008340881,0.051731,96599.0,96598.0,0.01323083]
[1733008341495,0.051731,96599.0,96598.0,0.01223083]
[1733008341791,0.051733,96596.0,96593.0,0.051734]
[1733008341991,0.051734,96595.0,96594.0,0.0116473]
[1733008342696,0.051734,96595.0,96594.0,0.00323536]
[1733008342894,0.051734,96595.0,96594.0,0.0116473]
[1733008343102,0.051734,96595.0,96594.0,0.0136473]
[1733008343588,0.051734,96595.0,96594.0,0.0156473]
[1733008344995,0.051734,96595.0,96594.0,0.00723536]
[1733008345397,0.051734,96595.0,96594.0,0.0156473]
[1733008346294,0.051734,96595.0,96594.0,0.00723536]
[1733008346497,0.051734,96595.0,96594.0,0.0156473]
[1733008346793,0.051734,96595.0,96594.0,0.00723536]
[1733008346994,0.051734,96595.0,96594.0,0.0156473]
[1733008347897,0.06750005,96604.0,96594.0,0.00723536]
[1733008348093,0.051732,96598.0,96597.0,0.051732]
[1733008348300,0.051732,96598.0,96597.0,0.05496736]
[1733008348498,0.00155325,96605.0,96597.0,0.00323536]
[1733008348707,0.051729,96604.0,96600.0,0.05173]
[1733008348898,0.051729,96603.0,96600.0,0.05173]
[1733008349807,0.05173,96601.0,96600.0,0.05173]
[1733008352999,0.05173,96601.0,96593.0,0.01237439]
[1733008353000,0.32970279,96605.0,96604.0,0.051729]
[1733008353198,0.08243081,96605.0,96593.0,0.01237439]
[1733008353404,0.051734,96594.0,96593.0,0.051734]
[1733008353600,0.32970267,96605.0,96593.0,0.01164709]
[1733008353601,0.24882511,96605.0,96593.0,0.01164709]
[1733008353906,0.24882511,96605.0,96598.0,0.051732]
[1733008353907,0.051731,96600.0,96598.0,0.051732]
[1733008354104,0.051733,96597.0,96591.0,0.15502904]
[1733008354402,0.051733,96597.0,96593.0,0.002]
[1733008354906,0.051733,96597.0,96594.0,0.01164723]
[1733008355097,0.05173,96602.0,96595.0,0.051733]
[1733008355296,0.051733,96597.0,96595.0,0.051733]
[1733008355900,0.051735,96592.0,96591.0,0.03511801]
[1733008356093,0.051735,96592.0,96591.0,0.18008563]
[1733008356897,0.051735,96592.0,96591.0,0.17685018]
[1733008357209,0.051735,96592.0,96591.0,0.16843801]
[1733008357501,0.051735,96592.0,96591.0,0.03311801]
[1733008357808,0.051735,96592.0,96591.0,0.02070904]
[1733008358205,0.051735,96592.0,96591.0,0.02270904]
[1733008358904,0.051735,96592.0,96591.0,0.02670904]
[1733008361012,0.051735,96592.0,96591.0,0.02994459]
[1733008361209,0.08092923,96592.0,96591.0,0.02670904]
[1733008361400,0.08092923,96592.0,96591.0,0.02994457]
[1733008361913,0.051733,96596.0,96594.0,0.051734]
[1733008362107,0.08148585,96595.0,96594.0,0.051734]
[1733008362302,0.08148585,96595.0,96594.0,0.0549695]
[1733008363002,0.08148585,96595.0,96594.0,0.0569695]
[1733008363502,0.24727186,96595.0,96594.0,0.0589695]
[1733008363699,0.32875771,96595.0,96594.0,0.0589695]
[1733008363905,0.08148585,96595.0,96594.0,0.0589695]
[1733008365109,0.08148585,96595.0,96594.0,0.055734]
[1733008365305,0.08148585,96595.0,96594.0,0.0589695]
[1733008366521,0.08148585,96595.0,96594.0,0.0072355]
[1733008368119,0.32914101,96595.0,96594.0,0.0072355]
[1733008368512,0.08148585,96595.0,96594.0,0.0072355]
[1733008371807,0.08148585,96595.0,96594.0,0.00723552]
[1733008375107,0.08148585,96595.0,96594.0,0.004]
[1733008376316,0.08148585,96595.0,96594.0,0.00723552]
[1733008376512,0.051733,96596.0,96594.0,0.004]
[1733008376712,0.17675588,96595.0,96594.0,0.004]
[1733008378413,0.45533919,96595.0,96594.0,0.004]
[1733008379116,0.17675588,96595.0,96594.0,0.004]
[1733008379508,0.08148585,96595.0,96594.0,0.004]
[1733008379705,0.17676347,96595.0,96594.0,0.004]
[1733008380019,0.051744,96576.0,96575.0,0.15258928]
[1733008380318,0.13322985,96576.0,96575.0,0.16100262]
[1733008380519,0.13322985,96576.0,96575.0,0.15258928]
[1733008380722,0.13322985,96576.0,96574.0,0.001553]
[1733008380723,0.13322985,96576.0,96574.0,0.01360858]
[1733008381018,0.051749,96567.0,96566.0,0.0001344]
[1733008381207,0.051749,96567.0,96545.0,0.3608]
[1733008381208,0.63926084,96567.0,96545.0,0.3608]
[1733008381407,0.63926084,96567.0,96536.0,0.0303]
[1733008381408,0.06750005,96555.0,96546.0,0.00647376]
[1733008381606,0.11378585,96554.0,96543.0,0.15258928]
[1733008381908,0.051761,96544.0,96543.0,0.15258928]